bitfinex/quotes_BTCUSD_20251104
["timestamp","ask_amount","ask_price","bid_price","bid_amount"]
[1762298164594,3.85835876,101280.0,101270.0,1e-08]
[1762298164811,3.82710682,101280.0,101270.0,1e-08]
[1762298165429,3.85835876,101280.0,101270.0,1e-08]
[1762298166436,2.66789488,101280.0,101270.0,1e-08]
[1762298166637,3.24750085,101280.0,101270.0,1e-08]
[1762298166834,3.83410682,101280.0,101270.0,1e-08]
[1762298168581,3.25450085,101280.0,101270.0,1e-08]
[1762298168992,3.20954085,101280.0,101270.0,1e-08]
[1762298169196,3.25442085,101280.0,101270.0,1e-08]
[1762298169420,3.83402682,101280.0,101270.0,1e-08]
[1762298169638,2.67481488,101280.0,101270.0,1e-08]
[1762298170010,3.25442793,101280.0,101270.0,1e-08]
[1762298170395,3.8340339,101280.0,101270.0,1e-08]
[1762298171519,3.20954793,101280.0,101270.0,1e-08]
[1762298171716,3.25442793,101280.0,101270.0,1e-08]
[1762298173036,3.8340339,101280.0,101270.0,1e-08]
[1762298173233,2.67482196,101280.0,101270.0,1e-08]
[1762298173439,1.17336565,101280.0,101270.0,1e-08]
[1762298173656,1.21820565,101280.0,101270.0,1e-08]
[1762298174085,1.25438793,101280.0,101270.0,1e-08]
[1762298174489,1.24738793,101280.0,101270.0,1e-08]
[1762298174843,1.2381706,101280.0,101270.0,1e-08]
[1762298175038,0.65856463,101280.0,101270.0,1e-08]
[1762298175497,0.57365463,101280.0,101270.0,0.08536323]
[1762298175697,0.57365463,101280.0,101270.0,0.19749186]
[1762298175698,0.19747235,101280.0,101270.0,0.19749186]
[1762298175919,0.20047235,101280.0,101270.0,0.21325186]
[1762298176531,0.20047235,101280.0,101270.0,1e-08]
[1762298176668,0.82053832,101280.0,101270.0,1e-08]
[1762298176867,1.1967206,101280.0,101270.0,1e-08]
[1762298177476,1.20593725,101280.0,101270.0,1e-08]
[1762298177676,3.20593725,101280.0,101270.0,1e-08]
[1762298177952,1.20593725,101280.0,101270.0,1e-08]
[1762298178281,1.16975497,101280.0,101270.0,1e-08]
[1762298178478,0.24093235,101280.0,101270.0,0.19749186]
[1762298178880,0.24093235,101280.0,101270.0,1e-08]
[1762298181177,0.82053832,101280.0,101270.0,1e-08]
[1762298181378,0.8567206,101280.0,101270.0,1e-08]
[1762298183350,0.27711463,101280.0,101270.0,1e-08]
[1762298183665,0.8567206,101280.0,101270.0,1e-08]
[1762298184481,3.78554991,101280.0,101270.0,1e-08]
[1762298185309,3.80399577,101280.0,101270.0,1e-08]
[1762298185460,3.78554991,101280.0,101270.0,1e-08]
[1762298185669,3.80399503,101280.0,101270.0,1e-08]
[1762298186072,3.78554991,101280.0,101270.0,1e-08]
[1762298187163,3.80399312,101280.0,101270.0,1e-08]
[1762298188794,3.22438715,101280.0,101270.0,1e-08]
[1762298189207,3.20594394,101280.0,101270.0,1e-08]
[1762298191979,3.22440687,101280.0,101270.0,1e-08]
[1762298192323,3.80401284,101280.0,101270.0,1e-08]
[1762298193007,0.22368086,101250.0,101240.0,0.03216742]
[1762298193310,0.22368086,101250.0,101240.0,0.0270024]
[1762298193537,0.24731086,101250.0,101240.0,0.0270024]
[1762298193944,0.24731086,101250.0,101240.0,0.22455277]
[1762298194943,0.24731086,101250.0,101240.0,0.0270024]
[1762298195469,0.82691683,101250.0,101240.0,0.0270024]
[1762298195668,1.20309911,101250.0,101240.0,0.00048231]
[1762298195871,3.20309911,101250.0,101240.0,0.00048231]
[1762298196044,3.21232594,101250.0,101240.0,0.00048231]
[1762298196255,3.2223458,101250.0,101240.0,0.00048231]
[1762298196840,3.80195177,101250.0,101240.0,0.00100231]
[1762298196958,0.1975894,101220.0,101210.0,0.02652009]
[1762298197165,0.1975894,101220.0,101210.0,0.00014475]
[1762298197166,0.84977537,101220.0,101210.0,0.00014475]
[1762298197363,0.87340537,101220.0,101210.0,0.00014475]
[1762298197915,1.21340537,101220.0,101210.0,0.00014475]
[1762298199131,0.5941794,101220.0,101210.0,0.19775368]
[1762298199341,0.5823094,101220.0,101210.0,0.2983769]
[1762298199514,0.5823094,101220.0,101210.0,0.29968092]
[1762298199715,0.38472,101220.0,101210.0,0.29968092]
[1762298200139,0.5823094,101220.0,101210.0,0.29968092]
[1762298200341,0.23247758,101230.0,101210.0,0.29968092]
[1762298200541,0.27719758,101230.0,101210.0,0.2983769]
[1762298200741,0.25417758,101230.0,101220.0,0.1975894]
[1762298200974,0.25417758,101230.0,101210.0,0.3217769]
[1762298201178,0.2128194,101220.0,101210.0,0.00014475]
[1762298201343,0.2358394,101220.0,101210.0,0.00014475]
[1762298201746,0.2358394,101220.0,101210.0,0.19775368]
[1762298201964,0.25416077,101230.0,101210.0,0.2992669]
[1762298202144,0.25218225,101240.0,101230.0,0.19756989]
[1762298202391,0.82033669,101250.0,101230.0,0.22263989]
[1762298202392,0.23071086,101250.0,101230.0,0.22263989]
[1762298202560,0.20769086,101250.0,101240.0,0.08536322]
[1762298202753,0.25241086,101250.0,101240.0,0.08536322]
[1762298203105,0.25241086,101250.0,101240.0,0.28291359]
[1762298203546,0.04472,101250.0,101240.0,0.29906359]
[1762298203707,0.001,101250.0,101240.0,0.29906359]
[1762298203913,0.25240915,101260.0,101250.0,0.19753086]
[1762298204362,0.59240915,101260.0,101250.0,0.19753086]
[1762298204550,0.19753086,101250.0,101240.0,0.30631359]
[1762298204750,0.19753086,101250.0,101240.0,0.31770359]
[1762298204907,0.19753086,101250.0,101240.0,0.31045359]
[1762298205112,0.19753086,101250.0,101240.0,0.33385359]
[1762298205853,0.59240915,101260.0,101250.0,0.19753086]
[1762298206091,0.59240915,101260.0,101250.0,0.21368086]
[1762298206092,0.58224915,101260.0,101250.0,0.21368086]
[1762298206346,0.38472,101260.0,101250.0,0.21368086]
[1762298206534,0.19751135,101260.0,101250.0,0.23708086]
[1762298206872,0.19751135,101260.0,101240.0,0.33070119]
[1762298207077,0.19751135,101260.0,101240.0,0.03791009]
[1762298207078,0.22429086,101250.0,101240.0,0.03791009]
[1762298207278,0.24731086,101250.0,101230.0,0.31837239]
[1762298207485,0.22429086,101250.0,101230.0,0.34191714]
[1762298207680,0.19755037,101240.0,101230.0,0.34191714]
[1762298207893,0.19755037,101240.0,101230.0,0.31851714]
[1762298208286,0.19755037,101240.0,101230.0,0.33466714]
[1762298208467,0.20906086,101250.0,101240.0,0.19755037]
[1762298208673,0.03289556,101260.0,101250.0,0.19753086]
[1762298209032,0.19751135,101260.0,101250.0,0.29428408]
[1762298209392,0.60361644,101270.0,101250.0,0.31043408]
[1762298209740,0.19751135,101260.0,101250.0,0.31043408]
[1762298209893,0.19751135,101260.0,101250.0,0.33383408]
[1762298211186,0.19751135,101260.0,101250.0,0.31043408]
[1762298211386,0.21889644,101270.0,101260.0,0.19751135]
[1762298212022,0.20736644,101270.0,101260.0,0.21366135]
[1762298212222,0.002,101270.0,101260.0,0.06607009]
[1762298212490,0.21102185,101270.0,101260.0,0.01615]
[1762298212696,0.20902185,101270.0,101260.0,0.02652009]
[1762298212840,0.21102185,101270.0,101260.0,0.02652009]
[1762298213040,0.01353,101270.0,101260.0,0.22403144]
[1762298213227,0.20902185,101270.0,101260.0,0.22403144]
[1762298213418,0.20902185,101270.0,101260.0,0.19851135]
[1762298213618,0.20902185,101270.0,101260.0,0.001]
[1762298214023,0.22425185,101270.0,101260.0,0.001]
[1762298214224,0.22425185,101270.0,101260.0,0.19851135]
[1762298214665,0.20902185,101270.0,101260.0,0.19851135]
[1762298215056,0.22425185,101270.0,101260.0,0.19851135]
[1762298215259,0.22425185,101270.0,101260.0,0.19751135]
[1762298215454,0.22425185,101270.0,101250.0,0.354068]
[1762298215657,0.26442208,101290.0,101260.0,0.24693691]
[1762298215856,0.19749185,101270.0,101260.0,0.04267009]
[1762298216097,0.20902185,101270.0,101260.0,0.01615]
[1762298216267,0.20902185,101270.0,101250.0,0.354068]
[1762298216449,0.19751135,101260.0,101250.0,0.354068]
[1762298216861,0.19751135,101260.0,101250.0,0.16282331]
[1762298217062,1.0152912,101260.0,101250.0,0.02652009]
[1762298217288,0.23576135,101260.0,101250.0,0.0003008]
[1762298218354,0.25470185,101270.0,101250.0,0.29934488]
[1762298218560,0.59370185,101270.0,101260.0,0.19751135]
[1762298219479,0.19751135,101260.0,101250.0,0.19753086]
[1762298220535,0.19751135,101260.0,101250.0,0.21368086]
[1762298220737,0.58217185,101270.0,101260.0,0.19751135]
[1762298220960,0.58217185,101270.0,101260.0,0.21366135]
[1762298221326,0.19751135,101260.0,101250.0,0.30629408]
[1762298221521,0.19751135,101260.0,101250.0,0.08536322]
[1762298221725,0.19751135,101260.0,101250.0,0.19753086]
[1762298221980,0.19751135,101260.0,101250.0,0.21368086]
[1762298222751,0.19751135,101260.0,101250.0,0.01615]
[1762298222947,0.19751135,101260.0,101250.0,0.08536322]
[1762298223173,0.19751135,101260.0,101250.0,0.28289408]
[1762298224895,0.19753086,101250.0,101240.0,0.23546046]
[1762298225566,0.19753086,101250.0,101240.0,0.25161046]
[1762298226066,0.22429086,101250.0,101240.0,0.03846162]
[1762298226274,0.24731086,101250.0,101240.0,0.01194153]
[1762298226494,0.24731086,101250.0,101240.0,0.00155153]
[1762298226934,1.4807135,101250.0,101240.0,0.00055153]
[1762298227189,1.44770299,101250.0,101240.0,0.00055153]
[1762298227549,1.4807135,101250.0,101240.0,0.00055153]
[1762298227925,1.44770299,101250.0,101240.0,0.00055153]
[1762298228346,0.66817314,101250.0,101240.0,0.00055153]
[1762298228743,0.67217314,101250.0,101240.0,0.00055153]
[1762298228951,1.45170299,101250.0,101240.0,0.00055153]
[1762298229150,1.44770299,101250.0,101240.0,0.00055153]
[1762298229392,3.45370299,101250.0,101240.0,0.00055153]
[1762298229795,0.97708022,101240.0,101230.0,0.00014475]
[1762298229998,1.10069344,101240.0,101230.0,0.00014475]
[1762298230895,1.13370395,101240.0,101230.0,0.00014475]
[1762298231531,1.13770395,101240.0,101230.0,0.00014475]
[1762298231768,1.10469344,101240.0,101230.0,0.00014475]
[1762298231973,0.23980037,101240.0,101230.0,0.00014475]
[1762298232179,1.0515125,101240.0,101230.0,0.00014475]
[1762298232675,0.27798265,101240.0,101230.0,0.00014475]
[1762298232913,1.0575125,101240.0,101230.0,0.00014475]
[1762298233547,1.0575125,101240.0,101200.0,0.19762845]
[1762298233548,0.1975894,101220.0,101200.0,0.19762845]
[1762298233788,0.19760893,101210.0,101200.0,0.19762845]
[1762298234272,0.19760893,101210.0,101200.0,0.01506]
[1762298234967,0.19760893,101210.0,101200.0,0.21268845]
[1762298235401,0.19760893,101210.0,101200.0,0.01506]
[1762298235584,0.21003893,101210.0,101200.0,0.01506]
[1762298235808,0.21003893,101210.0,101200.0,0.00100333]
[1762298236021,1.03069878,101210.0,101200.0,0.00100333]
[1762298236826,1.04099111,101210.0,101200.0,0.00100333]
[1762298238101,0.26146126,101210.0,101200.0,0.00100333]
[1762298238482,0.22623893,101210.0,101200.0,0.19863178]
[1762298238693,0.5375894,101220.0,101200.0,0.23714178]
[1762298238902,0.5375894,101220.0,101210.0,0.28297215]
[1762298239109,0.5375894,101220.0,101210.0,0.29189215]
[1762298239662,0.1975894,101220.0,101210.0,0.30695215]
[1762298240060,0.1975894,101220.0,101210.0,0.33040215]
[1762298240672,0.60457596,101230.0,101210.0,0.33040215]
[1762298241262,0.19762441,101210.0,101190.0,0.2974]
[1762298241471,0.19762845,101200.0,101190.0,0.03118506]
[1762298241666,0.19762845,101200.0,101190.0,0.09002819]
[1762298241914,0.19762845,101200.0,101190.0,0.32618617]
[1762298242117,0.21005441,101210.0,101190.0,0.32618617]
[1762298242272,0.21005441,101210.0,101200.0,0.19762845]
[1762298242472,0.21105441,101210.0,101200.0,0.19762845]
[1762298242674,0.21005441,101210.0,101200.0,0.19762845]
[1762298243361,0.19762441,101210.0,101200.0,0.01506]
[1762298243612,0.19762441,101210.0,101200.0,0.19762845]
[1762298243772,0.19762845,101200.0,101190.0,0.31112617]
[1762298244000,0.19762845,101200.0,101190.0,0.32618617]
[1762298244198,0.19762845,101200.0,101190.0,0.32718617]
[1762298244408,0.19762845,101200.0,101190.0,0.32618617]
[1762298244604,0.19762845,101200.0,101190.0,0.32744045]
[1762298245218,0.19762441,101210.0,101200.0,0.19762845]
[1762298245427,0.19762441,101210.0,101190.0,0.32718617]
[1762298245749,0.19762845,101200.0,101190.0,0.32718617]
[1762298246331,0.19762441,101210.0,101190.0,0.32718617]
[1762298246720,0.19762845,101200.0,101190.0,0.32718617]
[1762298247138,0.19762441,101210.0,101190.0,0.32618617]
[1762298247358,0.19762845,101200.0,101190.0,0.32618617]
[1762298248032,0.19762845,101200.0,101190.0,0.32718617]
[1762298248768,0.19762845,101200.0,101190.0,0.21837295]
[1762298250184,0.19762845,101200.0,101190.0,0.01972497]
[1762298250437,0.19762845,101200.0,101190.0,0.10508819]
[1762298250748,0.19762845,101200.0,101190.0,0.30273617]
[1762298251115,0.19762845,101200.0,101190.0,0.30399045]
[1762298251510,0.19762845,101200.0,101190.0,0.10634247]
[1762298251697,0.19762845,101200.0,101190.0,0.30399045]
[1762298251928,0.22255441,101210.0,101190.0,0.30399045]
[1762298252252,0.19762845,101200.0,101190.0,0.32626617]
[1762298253228,0.21405845,101200.0,101190.0,0.00466497]
[1762298253425,0.23790845,101200.0,101190.0,0.00466497]
[1762298253624,0.23790845,101200.0,101190.0,0.00591925]
[1762298254163,0.23790845,101200.0,101190.0,0.00139925]
[1762298255437,1.0174383,101200.0,101190.0,0.00139925]
[1762298257621,1.0194383,101200.0,101190.0,0.00139925]
[1762298260585,1.3594383,101200.0,101190.0,0.00139925]
[1762298261823,1.39244881,101200.0,101190.0,0.00139925]
[1762298262026,1.42863109,101200.0,101190.0,0.00139925]
[1762298262245,1.39562058,101200.0,101190.0,0.00139925]
[1762298262427,1.42863109,101200.0,101190.0,0.00139925]
[1762298262987,1.4378426,101200.0,101190.0,0.00139925]
[1762298263643,1.45626217,101200.0,101190.0,0.00139925]
[1762298264212,3.45626217,101200.0,101190.0,0.00139925]
[1762298264413,3.4378426,101200.0,101190.0,0.00139925]
[1762298264610,3.40483209,101200.0,101190.0,0.00139925]
[1762298264805,2.61609073,101200.0,101190.0,0.00139925]
[1762298265006,0.61609073,101200.0,101190.0,0.00139925]
[1762298265608,0.53962845,101200.0,101190.0,0.30500045]
[1762298265815,0.53962845,101200.0,101190.0,0.02198925]
[1762298266019,0.53962845,101200.0,101190.0,0.30500045]
[1762298266190,0.53962845,101200.0,101190.0,0.32891045]
[1762298266759,0.30979439,101200.0,101190.0,0.32891045]
[1762298266978,0.01153,101230.0,101220.0,0.19757765]
[1762298267180,0.03571,101230.0,101220.0,0.34]
[1762298267329,0.05233,101230.0,101220.0,0.34]
[1762298267533,0.24989989,101230.0,101220.0,0.34]
[1762298268139,0.19759879,101220.0,101210.0,0.34]
[1762298268419,0.02418,101220.0,101210.0,0.53760893]
[1762298268587,0.0408,101220.0,101210.0,0.53760893]
[1762298268798,0.01662,101220.0,101210.0,0.53760893]
[1762298269002,0.01153,101230.0,101220.0,0.1975894]
[1762298269469,0.22571989,101230.0,101220.0,0.1975894]
[1762298269674,0.22571989,101230.0,101210.0,0.53760893]
[1762298269675,0.1975894,101220.0,101210.0,0.53760893]
[1762298269878,0.2383894,101220.0,101210.0,0.53760893]
[1762298270077,0.0408,101220.0,101210.0,0.53760893]
[1762298270281,0.0408,101220.0,101210.0,0.19760893]
[1762298270482,0.2383894,101220.0,101210.0,0.19760893]
[1762298270762,0.0408,101220.0,101210.0,0.19760893]
[1762298270907,0.01662,101220.0,101210.0,0.28297215]
[1762298271106,0.01153,101230.0,101220.0,0.1975894]
[1762298271460,0.2142094,101220.0,101210.0,0.19760893]
[1762298271669,0.2142094,101220.0,101200.0,0.24297537]
[1762298271906,0.01662,101210.0,101200.0,0.54749275]
[1762298272392,0.01662,101210.0,101200.0,0.57410244]
[1762298272883,0.0408,101210.0,101200.0,0.57510577]
[1762298273178,0.0408,101210.0,101200.0,0.57810577]
[1762298274163,0.23840893,101210.0,101200.0,0.56824147]
[1762298274961,0.0408,101210.0,101200.0,0.56824147]
[1762298275159,0.01662,101210.0,101200.0,0.56824147]
[1762298275367,0.0408,101210.0,101200.0,0.56824147]
[1762298275576,0.0408,101210.0,101200.0,0.56524147]
[1762298275791,0.0408,101210.0,101200.0,0.56724147]
[1762298276208,0.23840893,101210.0,101200.0,0.22724147]
[1762298276416,0.0408,101210.0,101200.0,0.22724147]
[1762298276616,0.23840893,101210.0,101200.0,0.22724147]
[1762298277952,0.0408,101210.0,101200.0,0.22724147]
[1762298278335,0.23840893,101210.0,101200.0,0.22724147]
[1762298279211,0.0408,101210.0,101200.0,0.22724147]
[1762298280575,0.0408,101210.0,101200.0,0.26272409]
[1762298280962,0.0408,101210.0,101200.0,0.22724147]
[1762298281770,0.23840893,101210.0,101200.0,0.22724147]
[1762298281981,0.0408,101210.0,101200.0,0.22724147]
[1762298283425,0.01662,101210.0,101200.0,0.22724147]
[1762298283588,0.24315838,101230.0,101220.0,0.1975894]
[1762298283792,0.21897838,101230.0,101220.0,0.1975894]
[1762298283989,0.23559838,101230.0,101220.0,0.00050158]
[1762298284194,0.25977838,101230.0,101220.0,0.00050158]
[1762298284397,0.25977838,101230.0,101220.0,0.19809098]
[1762298284656,0.25977838,101230.0,101220.0,0.00050158]
[1762298285638,0.84026139,101230.0,101220.0,0.00050158]
[1762298285861,3.24772708,101230.0,101220.0,0.00050158]
[1762298286363,0.34987947,101220.0,101190.0,0.02675466]
[1762298286575,0.34987947,101220.0,101190.0,0.00014497]
[1762298286576,0.79473146,101200.0,101190.0,0.00014497]
[1762298286758,0.81891146,101200.0,101190.0,0.00014497]
[1762298287089,2.88437715,101200.0,101190.0,0.00014497]
[1762298288605,2.85509374,101200.0,101190.0,0.00014497]
[1762298289043,2.88436048,101200.0,101190.0,0.00014497]
[1762298289489,2.30387747,101200.0,101190.0,0.00014497]
[1762298289699,2.88436048,101200.0,101190.0,0.00014497]
[1762298291035,2.85509374,101200.0,101190.0,0.00014497]
[1762298291269,0.2338498,101180.0,101170.0,0.0004]
[1762298291490,0.92182128,101180.0,101170.0,0.0004]
[1762298291703,0.91116787,101180.0,101170.0,0.0004]
[1762298291923,0.28604486,101180.0,101170.0,0.0004]
[1762298292457,0.29450258,101180.0,101170.0,0.00165465]
[1762298292685,0.24986258,101180.0,101170.0,0.00265465]
[1762298292883,0.29450258,101180.0,101170.0,0.00265465]
[1762298294931,0.3044444,101180.0,101170.0,0.00265465]
[1762298295831,0.29450258,101180.0,101170.0,0.00265465]
[1762298298203,0.29450258,101180.0,101170.0,0.20034171]
[1762298298642,0.02841506,101180.0,101170.0,0.20034171]
[1762298298841,0.01177506,101180.0,101170.0,0.28570493]
[1762298299159,9.506e-05,101180.0,101170.0,0.86618794]
[1762298299303,9.506e-05,101180.0,101170.0,0.28570493]
[1762298299509,9.506e-05,101180.0,101170.0,0.31231462]
[1762298299924,9.506e-05,101180.0,101170.0,0.31131462]
[1762298300136,0.19776258,101180.0,101170.0,0.31131462]
[1762298300624,0.23818258,101180.0,101170.0,0.00165465]
[1762298301739,0.23818258,101180.0,101170.0,0.00565465]
[1762298301877,0.81866559,101180.0,101170.0,0.00165465]
[1762298302279,0.81866559,101180.0,101170.0,0.00365465]
[1762298303095,0.81866559,101180.0,101170.0,0.00165465]
[1762298304682,0.81866559,101180.0,101170.0,0.28470493]
[1762298304683,0.23818258,101180.0,101170.0,0.28470493]
[1762298304820,9.506e-05,101180.0,101170.0,0.28470493]
[1762298305403,0.01673506,101180.0,101170.0,0.28470493]
[1762298306203,0.01673506,101180.0,101170.0,0.28770493]
[1762298307633,9.506e-05,101180.0,101170.0,1.23479763]
[1762298307995,0.01168,101210.0,101200.0,0.19762845]
[1762298308191,0.1975894,101220.0,101200.0,0.28299167]
[1762298308441,0.20928893,101210.0,101200.0,0.2834934]
[1762298308636,0.24970893,101210.0,101200.0,0.00050173]
[1762298309178,0.24970893,101210.0,101200.0,0.20113018]
[1762298309379,0.24237416,101220.0,101210.0,0.19760893]
[1762298309782,0.00014476,101220.0,101210.0,0.19760893]
[1762298309981,0.00014476,101220.0,101210.0,0.64953457]
[1762298310295,0.00014476,101220.0,101210.0,1.26543569]
[1762298310907,0.00014476,101220.0,101210.0,1.23887327]
[1762298311111,0.00014476,101220.0,101210.0,1.26543635]
[1762298311737,0.00014476,101220.0,101210.0,1.29156085]
[1762298311963,0.00014476,101220.0,101210.0,1.29356085]
[1762298312202,0.50014476,101220.0,101210.0,0.71107784]
[1762298312419,0.50014476,101220.0,101210.0,0.65839026]
[1762298312672,0.50014476,101220.0,101210.0,0.66139026]
[1762298313234,0.50014476,101220.0,101210.0,0.71407784]
[1762298314576,0.50014476,101220.0,101210.0,1.29456085]
[1762298314779,0.50014476,101220.0,101210.0,1.26865694]
[1762298317265,0.50014476,101220.0,101210.0,1.31865694]
[1762298317491,0.50014476,101220.0,101210.0,1.29212412]
[1762298317685,0.50014476,101220.0,101210.0,1.3448117]
[1762298317888,0.01153,101250.0,101240.0,0.19755037]
[1762298318106,0.20919357,101260.0,101250.0,0.19753086]
[1762298318307,0.23326621,101260.0,101240.0,0.28291359]
[1762298318461,0.20963086,101250.0,101240.0,0.28291359]
[1762298318660,0.19755037,101240.0,101230.0,0.0446]
[1762298318913,0.21353037,101240.0,101230.0,0.58216989]
[1762298319090,0.0121,101250.0,101240.0,0.19755037]
[1762298319657,0.22561086,101250.0,101240.0,0.19755037]
[1762298320396,0.19755037,101240.0,101230.0,0.62293311]
[1762298320530,0.21295037,101240.0,101230.0,0.34]
[1762298320716,0.21295037,101240.0,101230.0,0.341]
[1762298320717,0.23703037,101240.0,101230.0,0.341]
[1762298320918,0.03948,101240.0,101230.0,0.53856989]
[1762298321152,0.0154,101240.0,101230.0,0.53756989]
[1762298321717,0.03618,101250.0,101240.0,0.19755037]
[1762298321919,0.0275,101250.0,101240.0,0.28291359]
[1762298322172,0.22503086,101250.0,101240.0,0.28291359]
[1762298322930,0.19755037,101240.0,101230.0,0.53956989]
[1762298323133,0.24911086,101250.0,101230.0,0.62493311]
[1762298323524,0.24911086,101250.0,101230.0,0.62293311]
[1762298323922,0.24911086,101250.0,101240.0,0.001]
[1762298324329,0.24911086,101250.0,101230.0,0.62293311]
[1762298324530,0.21295037,101240.0,101230.0,0.62293311]
[1762298324729,0.23703037,101240.0,101230.0,0.53756989]
[1762298324966,0.23703037,101240.0,101230.0,0.19756989]
[1762298325199,0.23703037,101240.0,101230.0,0.28293311]
[1762298325499,0.0121,101250.0,101240.0,0.19755037]
[1762298326141,0.01216264,101260.0,101250.0,0.19753086]
[1762298326392,0.01216264,101260.0,101250.0,0.28289408]
[1762298326597,0.01216264,101260.0,101250.0,1.20337709]
[1762298326598,0.00048264,101260.0,101250.0,1.20337709]
[1762298326930,0.00048264,101260.0,101250.0,0.62289408]
[1762298327098,0.01588264,101260.0,101250.0,0.42536322]
[1762298327313,0.00048264,101260.0,101250.0,0.62289408]
[1762298327522,0.00048264,101260.0,101250.0,1.20337709]
[1762298327724,0.00048264,101260.0,101250.0,0.62289408]
[1762298327901,0.00048264,101260.0,101250.0,0.62489408]
[1762298328101,0.19799399,101260.0,101250.0,0.62489408]
[1762298328689,0.00048264,101260.0,101250.0,0.62489408]
[1762298329101,0.19799399,101260.0,101250.0,0.62489408]
[1762298329491,0.00048264,101260.0,101250.0,0.62489408]
[1762298329692,0.21339399,101260.0,101250.0,0.62489408]
[1762298329917,0.23747399,101260.0,101250.0,0.002]
[1762298330875,0.03996264,101260.0,101250.0,0.28489408]
[1762298331340,0.03996264,101260.0,101250.0,0.28289408]
[1762298331564,0.01588264,101260.0,101250.0,0.28389408]
[1762298332442,0.23747399,101260.0,101250.0,0.28389408]
[1762298332875,0.23747399,101260.0,101250.0,0.001]
[1762298334820,0.23747399,101260.0,101250.0,0.19853086]
[1762298335299,0.00048264,101260.0,101250.0,0.28389408]
[1762298335436,0.21339399,101260.0,101250.0,0.28389408]
[1762298337001,0.23747399,101260.0,101250.0,0.001]
[1762298337404,0.23747399,101260.0,101250.0,0.28389408]
[1762298337759,0.23747399,101260.0,101250.0,0.08636322]
[1762298338016,0.23747399,101260.0,101250.0,0.19853086]
[1762298338211,0.23747399,101260.0,101250.0,0.22500669]
[1762298339358,0.03996264,101260.0,101250.0,0.22500669]
[1762298340563,0.21339399,101260.0,101250.0,0.31036991]
[1762298340701,0.23747399,101260.0,101250.0,0.02747583]
[1762298341561,0.23747399,101260.0,101250.0,0.001]
[1762298341763,1.01707406,101260.0,101250.0,0.001]
[1762298342127,1.09781634,101260.0,101250.0,0.001]
[1762298342307,1.10701432,101260.0,101250.0,0.001]
[1762298342930,0.19755037,101240.0,101230.0,0.69470509]
[1762298343172,0.21295037,101240.0,101230.0,0.57392376]
[1762298343372,0.23703037,101240.0,101230.0,0.57392376]
[1762298343574,0.23322858,101250.0,101230.0,0.57392376]
[1762298343775,0.23322858,101250.0,101240.0,0.19755037]
[1762298343979,0.20914858,101250.0,101240.0,0.19755037]
[1762298344191,0.24862858,101250.0,101240.0,0.19755037]
[1762298344725,0.027,101250.0,101240.0,0.19755037]
[1762298344940,0.22453086,101250.0,101240.0,0.19755037]
[1762298345116,0.22453086,101250.0,101230.0,0.69470509]
[1762298345315,0.24861086,101250.0,101240.0,0.19755037]
[1762298345499,0.24861086,101250.0,101230.0,0.69470509]
[1762298345699,0.19755037,101240.0,101230.0,0.69470509]
[1762298346028,0.23703037,101240.0,101230.0,0.06189394]
[1762298346271,0.23703037,101240.0,101230.0,0.02647583]
[1762298346600,0.19756989,101230.0,101220.0,0.40211971]
[1762298346819,0.23704989,101230.0,101220.0,0.40211971]
[1762298347446,0.23704989,101230.0,101220.0,0.3667016]
[1762298348291,0.23704989,101230.0,101220.0,0.564291]
[1762298348509,0.0154,101230.0,101220.0,0.564291]
[1762298348710,0.19755037,101240.0,101230.0,0.19756989]
[1762298348916,0.19755037,101240.0,101230.0,0.30954956]
[1762298348917,0.21295037,101240.0,101230.0,0.30954956]
[1762298349333,0.23703037,101240.0,101230.0,0.02661645]
[1762298349930,0.19756989,101230.0,101220.0,0.40226033]
[1762298350161,0.23704989,101230.0,101220.0,0.59984973]
[1762298350573,0.23704989,101230.0,101220.0,0.40226033]
[1762298351197,0.23704989,101230.0,101220.0,0.22443162]
[1762298352059,0.23704989,101230.0,101220.0,0.02684222]
[1762298352228,0.23704989,101230.0,101220.0,0.22643162]
[1762298352439,0.23704989,101230.0,101220.0,0.02684222]
[1762298352997,0.23704989,101230.0,101220.0,0.00122577]
[1762298352998,1.01664996,101230.0,101220.0,0.00122577]
[1762298353410,0.23704989,101230.0,101220.0,0.00122577]
[1762298354943,0.23704989,101230.0,101220.0,0.00022577]
[1762298355375,0.23804989,101230.0,101220.0,0.00022577]
[1762298355580,0.24785324,101230.0,101220.0,0.00022577]
[1762298357061,0.23804989,101230.0,101220.0,0.00022577]
[1762298360134,1.05383224,101230.0,101220.0,0.00022577]
[1762298360781,0.27423217,101230.0,101220.0,0.00022577]
[1762298360981,1.08417272,101230.0,101220.0,0.00022577]
[1762298361848,1.05383224,101230.0,101220.0,0.00022577]
[1762298363289,1.08417272,101230.0,101220.0,0.00022577]
[1762298363876,1.05383224,101230.0,101220.0,0.00022577]
[1762298364903,0.27423217,101230.0,101220.0,0.00022577]
[1762298365102,1.05383224,101230.0,101220.0,0.00022577]
[1762298365681,3.05383224,101230.0,101220.0,0.00022577]
[1762298368069,2.27423217,101230.0,101220.0,0.00022577]
[1762298368289,3.05383224,101230.0,101220.0,0.00022577]
[1762298369497,3.42417272,101230.0,101220.0,0.00022577]
[1762298370459,0.19764798,101190.0,101180.0,0.24296677]
[1762298370615,0.22603798,101190.0,101180.0,0.54754866]
[1762298370810,0.24858798,101190.0,101180.0,0.54754866]
[1762298371011,0.24858798,101190.0,101180.0,0.53844535]
[1762298371664,0.24858798,101190.0,101180.0,0.53859011]
[1762298371887,0.05094,101190.0,101180.0,0.53859011]
[1762298372247,0.05094,101190.0,101180.0,0.57400822]
[1762298372458,0.05094,101190.0,101180.0,0.57600822]
[1762298372844,0.24858798,101190.0,101180.0,0.57600822]
[1762298374738,0.05094,101190.0,101180.0,0.54059011]
[1762298375172,0.24858798,101190.0,101180.0,0.54059011]
[1762298375378,0.24858798,101190.0,101180.0,0.57600822]
[1762298375601,0.05094,101190.0,101180.0,0.57600822]
[1762298375804,0.02839,101190.0,101180.0,0.57600822]
[1762298376124,0.0124,101200.0,101190.0,0.19764798]
[1762298376326,0.0124,101200.0,101190.0,0.2830112]
[1762298376600,0.01246,101210.0,101200.0,0.19762845]
[1762298376820,0.2332483,101220.0,101210.0,0.19760893]
[1762298376988,0.2332483,101220.0,101200.0,0.19762845]
[1762298377133,0.01566,101210.0,101200.0,0.19762845]
[1762298378001,0.2332483,101220.0,101210.0,0.19760893]
[1762298378381,0.2489083,101220.0,101210.0,0.19760893]
[1762298378581,0.05127,101220.0,101210.0,0.19760893]
[1762298378909,0.02321,101230.0,101210.0,0.28297215]
[1762298379049,0.01246,101230.0,101220.0,0.1975894]
[1762298379253,0.02812,101230.0,101220.0,0.1975894]
[1762298380405,0.22578516,101230.0,101220.0,0.1975894]
[1762298380959,0.22578516,101230.0,101210.0,0.37107784]
[1762298381129,0.2375494,101220.0,101210.0,0.03541811]
[1762298381306,0.2375494,101220.0,101210.0,0.31839026]
[1762298381717,0.2134794,101220.0,101210.0,0.31839026]